bitfinex/quotes_BTCUSD_20241101
["timestamp","ask_amount","ask_price","bid_price","bid_amount"]
[1730438230686,0.5292617,69556.0,69555.0,0.00352391]
[1730438230892,0.36519165,69556.0,69555.0,0.00352391]
[1730438231111,0.37868709,69556.0,69555.0,0.00352391]
[1730438231949,0.37868933,69556.0,69555.0,0.00352391]
[1730438233599,0.38118973,69556.0,69555.0,0.00352391]
[1730438234240,0.27326004,69556.0,69555.0,0.00352391]
[1730438234694,0.35960918,69556.0,69555.0,0.00352391]
[1730438234915,0.50737139,69556.0,69555.0,0.00352391]
[1730438235317,0.50737463,69556.0,69555.0,0.00352391]
[1730438236133,0.42102225,69556.0,69555.0,0.00352391]
[1730438236537,0.50737151,69556.0,69555.0,0.00352391]
[1730438237899,0.3571089,69556.0,69555.0,0.00352391]
[1730438238146,0.33011826,69556.0,69555.0,0.00352391]
[1730438238352,0.35710084,69556.0,69555.0,0.00352391]
[1730438238554,0.35710038,69556.0,69555.0,0.00352391]
[1730438238850,0.21333138,69556.0,69555.0,0.00352391]
[1730438239082,0.02698212,69556.0,69555.0,0.43556411]
[1730438239287,0.02698212,69556.0,69555.0,0.35305594]
[1730438240032,0.02698212,69556.0,69555.0,0.34324675]
[1730438240476,0.02698212,69556.0,69555.0,0.57756201]
[1730438240675,0.02698212,69556.0,69555.0,0.481702]
[1730438240887,0.02698212,69556.0,69555.0,0.34324675]
[1730438241963,0.000822,69558.0,69557.0,0.15566391]
[1730438242369,0.0277648,69558.0,69557.0,0.16900665]
[1730438243988,0.0142934,69558.0,69557.0,0.16900665]
[1730438244192,0.02776111,69558.0,69557.0,0.16900665]
[1730438248807,0.000822,69558.0,69557.0,0.16900665]
[1730438248999,0.0277377,69558.0,69557.0,0.16900665]
[1730438252189,0.02773266,69558.0,69557.0,0.16900665]
[1730438252611,0.000822,69558.0,69557.0,0.16900665]
[1730438252817,0.0277329,69558.0,69557.0,0.16900665]
[1730438255916,0.02773364,69558.0,69557.0,0.16900665]
[1730438256254,0.0277337,69558.0,69557.0,0.16900665]
[1730438256812,0.01427825,69558.0,69557.0,0.16900665]
[1730438257012,0.02773477,69558.0,69557.0,0.16900665]
[1730438257678,0.02773477,69558.0,69557.0,0.01524065]
[1730438257876,0.02773477,69558.0,69557.0,0.01334274]
[1730438257877,0.30440945,69558.0,69557.0,0.01334274]
[1730438258086,0.16064545,69558.0,69555.0,0.00352391]
[1730438258275,0.143769,69556.0,69555.0,0.00352391]
[1730438258481,0.17068177,69556.0,69555.0,0.00352391]
[1730438259428,0.17068177,69556.0,69555.0,0.001626]
[1730438260066,0.17068177,69556.0,69555.0,0.00352391]
[1730438260498,0.17068177,69556.0,69555.0,0.001626]
[1730438260909,0.17068177,69556.0,69555.0,0.00352391]
[1730438261116,0.17068177,69556.0,69555.0,0.001626]
[1730438261725,0.17068177,69556.0,69555.0,0.00352391]
[1730438264182,0.17068952,69556.0,69555.0,0.00352391]
[1730438266621,0.17068952,69556.0,69555.0,0.01458053]
[1730438267750,0.17070017,69556.0,69555.0,0.01458053]
[1730438269766,0.15723582,69556.0,69555.0,0.01458053]
[1730438269984,0.17070264,69556.0,69555.0,0.01458053]
[1730438270663,0.02693364,69556.0,69555.0,0.01458053]
[1730438270903,0.17070264,69556.0,69555.0,0.01458053]
[1730438273148,0.15723582,69556.0,69555.0,0.01458053]
[1730438273367,0.1707015,69556.0,69555.0,0.01458053]
[1730438273585,0.1707001,69556.0,69555.0,0.01458053]
[1730438276614,0.15723498,69556.0,69555.0,0.01458053]
[1730438276826,0.17070096,69556.0,69555.0,0.01458053]
[1730438277491,0.02693196,69556.0,69555.0,0.01458053]
[1730438278373,0.02693362,69556.0,69555.0,0.01458053]
[1730438280156,0.02693599,69556.0,69555.0,0.01458053]
[1730438281483,0.0269388,69556.0,69555.0,0.01458053]
[1730438282887,0.02694482,69556.0,69555.0,0.01458053]
[1730438283332,0.02694748,69556.0,69555.0,0.01458053]
[1730438283776,0.01347374,69556.0,69555.0,0.01458053]
[1730438283975,0.26411671,69556.0,69555.0,0.01458053]
[1730438284533,0.26411671,69556.0,69555.0,0.00352391]
[1730438284866,0.17071671,69556.0,69555.0,0.00352391]
[1730438293946,0.143769,69556.0,69555.0,0.00352391]
[1730438294141,0.17075016,69556.0,69555.0,0.00352391]
[1730438294346,0.17075031,69556.0,69555.0,0.00352391]
[1730438295176,0.17075052,69556.0,69555.0,0.00352391]
[1730438295547,0.02698152,69556.0,69555.0,0.00352391]
[1730438295814,0.02698152,69556.0,69555.0,0.24099491]
[1730438295973,0.02698152,69556.0,69555.0,0.34791412]
[1730438296344,0.02698152,69556.0,69555.0,0.53007413]
[1730438296750,0.02698152,69556.0,69555.0,0.43421412]
[1730438297493,0.01349073,69556.0,69555.0,0.53007413]
[1730438297894,0.02697056,69556.0,69555.0,0.43421412]
[1730438298934,0.02697056,69556.0,69555.0,0.53507413]
[1730438299604,0.02697056,69556.0,69555.0,0.43921412]
[1730438300020,0.02697056,69556.0,69555.0,0.53507413]
[1730438300229,0.02697056,69556.0,69555.0,0.43921412]
[1730438303404,0.01349073,69556.0,69555.0,0.43921412]
[1730438303763,0.02695474,69556.0,69555.0,0.43921412]
[1730438305231,0.000822,69558.0,69557.0,0.153766]
[1730438305429,0.01428414,69558.0,69557.0,0.153766]
[1730438305676,0.02774628,69558.0,69557.0,0.153766]
[1730438305875,0.02774628,69558.0,69557.0,0.1648252]
[1730438306276,0.02774628,69558.0,69557.0,0.16672311]
[1730438306915,0.01428414,69558.0,69557.0,0.16672311]
[1730438307043,0.02774463,69558.0,69557.0,0.16672311]
[1730438308714,0.01428125,69558.0,69557.0,0.16672311]
[1730438308927,0.0277405,69558.0,69557.0,0.16672311]
[1730438312341,0.01428094,69558.0,69557.0,0.16672311]
[1730438312555,0.02773988,69558.0,69557.0,0.16672311]
[1730438315067,0.000822,69558.0,69557.0,0.16672311]
[1730438315270,0.0277414,69558.0,69557.0,0.16672311]
[1730438315902,0.000822,69558.0,69557.0,0.16672311]
[1730438316107,0.02774262,69558.0,69557.0,0.25832311]
[1730438316305,0.02774262,69558.0,69557.0,0.26119795]
[1730438316511,0.0277435,69558.0,69557.0,0.26119795]
[1730438317094,0.0277435,69558.0,69557.0,0.25832311]
[1730438317775,0.0277435,69558.0,69557.0,0.26119801]
[1730438318466,0.0277435,69558.0,69557.0,0.25832311]
[1730438319663,0.01428616,69558.0,69557.0,0.25832311]
[1730438319871,0.02775032,69558.0,69557.0,0.25832311]
[1730438323201,0.01428616,69558.0,69557.0,0.25832311]
[1730438323402,0.02775655,69558.0,69557.0,0.25832311]
[1730438327128,0.000822,69558.0,69557.0,0.25832311]
[1730438327344,0.02779998,69558.0,69557.0,0.25832311]
[1730438327550,0.02780008,69558.0,69557.0,0.25832311]
[1730438329638,0.02780017,69558.0,69557.0,0.25832311]
[1730438330011,0.02780017,69558.0,69557.0,0.25996711]
[1730438331006,0.02780012,69558.0,69557.0,0.25996711]
[1730438333865,0.02780012,69558.0,69557.0,0.16836711]
[1730438334484,0.02780026,69558.0,69557.0,0.16836711]
[1730438336365,0.02780042,69558.0,69557.0,0.16836711]
[1730438337597,0.01431153,69558.0,69557.0,0.16836711]
[1730438337836,0.02780106,69558.0,69557.0,0.16836711]
[1730438338237,0.02780108,69558.0,69557.0,0.16836711]
[1730438338575,0.02780136,69558.0,69557.0,0.16836711]
[1730438340915,0.02780136,69558.0,69557.0,0.16336711]
[1730438341147,0.02780136,69558.0,69557.0,0.01460111]
[1730438341148,0.000822,69558.0,69557.0,0.01460111]
[1730438341363,0.14667146,69558.0,69557.0,0.15836711]
[1730438341987,0.18980662,69558.0,69557.0,0.15836711]
[1730438342181,0.14667146,69558.0,69557.0,0.15836711]
[1730438342342,0.18980662,69558.0,69557.0,0.15836711]
[1730438342879,0.16723862,69558.0,69557.0,0.15836711]
[1730438343485,0.12410346,69558.0,69557.0,0.15836711]
[1730438344553,0.08079101,69558.0,69557.0,0.15836711]
[1730438344760,0.02696901,69558.0,69557.0,0.15836711]
[1730438346405,0.02696901,69558.0,69557.0,0.1546477]
[1730438348225,0.02695231,69558.0,69557.0,0.1546477]
[1730438348433,0.01347411,69558.0,69557.0,0.1546477]
[1730438348764,0.02694791,69558.0,69557.0,0.1546477]
[1730438348968,0.02694726,69558.0,69557.0,0.1546477]
[1730438352121,0.02776926,69558.0,69557.0,0.1546477]
[1730438352362,0.0277673,69558.0,69557.0,0.16252284]
[1730438352620,0.0277673,69558.0,69557.0,0.3363477]
[1730438353014,0.0277673,69558.0,69557.0,0.47290504]
[1730438353284,0.0277673,69558.0,69557.0,0.47680295]
[1730438353878,0.21769576,69569.0,69568.0,0.24554191]
[1730438354106,0.01346779,69569.0,69568.0,0.42140192]
[1730438354267,0.01346779,69569.0,69568.0,0.56716467]
[1730438354473,0.01346779,69569.0,69568.0,0.66302468]
[1730438354677,0.01346779,69569.0,69568.0,0.56716467]
[1730438355482,0.000822,69571.0,69570.0,0.01]
[1730438355685,0.01428048,69571.0,69570.0,0.15563791]
[1730438355888,0.01428048,69571.0,69570.0,0.16284473]
[1730438356736,0.000822,69571.0,69570.0,0.40003427]
[1730438356937,0.000822,69571.0,69570.0,0.56975999]
[1730438357144,0.000822,69571.0,69570.0,0.56775999]
[1730438359318,0.000822,69571.0,69570.0,0.56975999]
[1730438359961,0.000822,69571.0,69570.0,0.56775999]
[1730438360219,0.000822,69571.0,69570.0,0.56586208]
[1730438362407,0.000822,69571.0,69570.0,0.56975999]
[1730438362639,0.000822,69571.0,69570.0,0.56775999]
[1730438364445,0.000822,69571.0,69570.0,0.78662]
[1730438364933,0.000822,69571.0,69570.0,0.85096748]
[1730438365414,0.143665,69606.0,69584.0,0.01189791]
[1730438365652,4.982e-05,69599.0,69584.0,0.65598418]
[1730438366164,4.982e-05,69599.0,69584.0,0.662924]
[1730438366644,0.21769576,69604.0,69584.0,0.662924]
[1730438367566,0.21769576,69604.0,69584.0,0.762924]
[1730438368327,0.21769576,69604.0,69584.0,0.785924]
[1730438371347,0.21769576,69604.0,69584.0,0.79497532]
[1730438371822,0.21769576,69604.0,69599.0,0.33537791]
[1730438372046,0.21769576,69604.0,69599.0,0.67205728]
[1730438372502,0.21769576,69611.0,69599.0,0.67205728]
[1730438381020,0.21769576,69611.0,69599.0,0.57619727]
[1730438381217,0.21769576,69611.0,69599.0,0.67205728]
[1730438381864,0.01338316,69610.0,69599.0,0.67205728]
[1730438382534,0.01338316,69610.0,69599.0,0.57619727]
[1730438382767,0.01338316,69610.0,69599.0,0.67205728]
[1730438383413,0.21769576,69611.0,69599.0,0.67205728]
[1730438383414,0.01338316,69609.0,69599.0,0.67205728]
[1730438383615,0.01338316,69608.0,69599.0,0.67205728]
[1730438383758,0.21769576,69611.0,69599.0,0.67205728]
[1730438383953,0.013398,69610.0,69599.0,0.67205728]
[1730438384166,0.013398,69609.0,69599.0,0.67205728]
[1730438384417,0.013398,69608.0,69599.0,0.67205728]
[1730438384619,0.013398,69607.0,69599.0,0.67205728]
[1730438384873,0.013398,69606.0,69599.0,0.67205728]
[1730438385171,0.21769576,69611.0,69599.0,0.67205728]
[1730438385394,0.01340582,69610.0,69599.0,0.67205728]
[1730438385609,0.01340582,69609.0,69599.0,0.67205728]
[1730438385811,0.01340582,69608.0,69599.0,0.67205728]
[1730438386043,0.01340582,69607.0,69599.0,0.67205728]
[1730438386471,0.01340582,69606.0,69599.0,0.67205728]
[1730438386692,0.01340582,69605.0,69599.0,0.67205728]
[1730438386897,0.01340582,69604.0,69599.0,0.67205728]
[1730438387130,0.21769576,69611.0,69599.0,0.67205728]
[1730438387337,0.01341178,69610.0,69599.0,0.67205728]
[1730438387549,0.01341178,69609.0,69599.0,0.57619727]
[1730438387775,0.01341178,69608.0,69599.0,0.57619727]
[1730438387976,0.01341178,69607.0,69599.0,0.57619727]
[1730438388187,0.01341178,69606.0,69599.0,0.67205728]
[1730438388388,0.21769576,69611.0,69599.0,0.67205728]
[1730438391429,0.01507807,69600.0,69599.0,0.67205728]
[1730438391667,0.01507807,69600.0,69599.0,0.57619727]
[1730438391879,0.01507807,69600.0,69599.0,0.67205728]
[1730438393345,0.001644,69600.0,69599.0,0.67205728]
[1730438393569,0.01509532,69600.0,69599.0,0.49389727]
[1730438393777,0.01509532,69600.0,69599.0,0.39639727]
[1730438395247,0.01509532,69600.0,69599.0,0.49225728]
[1730438395473,0.0285616,69600.0,69599.0,0.39639727]
[1730438395675,0.0285616,69600.0,69599.0,0.49225728]
[1730438397090,0.01511028,69600.0,69599.0,0.49225728]
[1730438397291,0.02858642,69600.0,69599.0,0.49225728]
[1730438397749,0.02858642,69600.0,69599.0,0.39639727]
[1730438398273,0.02858642,69600.0,69599.0,0.49225728]
[1730438399347,0.01511521,69600.0,69599.0,0.49225728]
[1730438399516,0.02859112,69600.0,69599.0,0.49225728]
[1730438401757,0.02859112,69600.0,69599.0,0.49425728]
[1730438404047,0.01511991,69600.0,69599.0,0.49425728]
[1730438404251,0.02859877,69600.0,69599.0,0.49425728]
[1730438404868,0.02859877,69600.0,69599.0,0.49225728]
[1730438405106,0.02859877,69600.0,69599.0,0.49425728]
[1730438408413,0.000822,69615.0,69612.0,0.005]
[1730438408632,0.000822,69615.0,69614.0,0.34226693]
[1730438408874,0.000822,69615.0,69614.0,0.34726693]
[1730438409115,0.000822,69615.0,69614.0,0.49210004]
[1730438409331,0.000822,69615.0,69614.0,0.57530004]
[1730438409565,0.000822,69615.0,69614.0,0.61822029]
[1730438409798,0.000822,69615.0,69614.0,0.89683951]
[1730438410451,0.000822,69615.0,69614.0,0.67410004]
[1730438410657,0.000822,69615.0,69614.0,0.89881276]
[1730438411521,0.000822,69615.0,69614.0,0.67610004]
[1730438412820,0.000822,69615.0,69614.0,0.71897674]
[1730438414207,0.000822,69626.0,69625.0,0.33522391]
[1730438414413,0.000822,69626.0,69625.0,0.66539918]
[1730438415040,0.000822,69626.0,69625.0,0.72967977]
[1730438416226,0.000822,69626.0,69625.0,0.88786744]
[1730438416474,0.000822,69626.0,69625.0,0.7082201]
[1730438417399,0.000822,69626.0,69625.0,0.66539918]
[1730438418413,0.000822,69626.0,69625.0,0.78839918]
[1730438418848,0.000822,69626.0,69625.0,0.85267977]
[1730438419252,0.000822,69626.0,69625.0,0.78839918]
[1730438423012,0.000822,69626.0,69625.0,0.38983917]
[1730438423254,0.000822,69626.0,69625.0,0.29397916]
[1730438423386,0.000822,69626.0,69625.0,0.38983917]
[1730438426999,0.000822,69626.0,69625.0,0.29397916]
[1730438430289,0.000822,69626.0,69625.0,0.38983917]
[1730438430911,0.000822,69626.0,69625.0,0.29397916]
[1730438431137,0.000822,69626.0,69625.0,0.38983917]
[1730438431820,0.000822,69626.0,69625.0,0.40440301]
[1730438445192,0.000822,69626.0,69625.0,0.308543]
[1730438445430,0.000822,69626.0,69625.0,0.16008775]
[1730438445634,0.079722,69626.0,69625.0,0.16008775]
[1730438446741,0.079722,69626.0,69625.0,0.15818984]
[1730438447002,0.079722,69626.0,69625.0,0.16008775]
[1730438447209,0.079722,69626.0,69625.0,0.16508775]
[1730438447638,0.079722,69626.0,69625.0,0.16008775]
[1730438450119,0.079722,69626.0,69625.0,0.16508775]
[1730438452097,0.000822,69626.0,69625.0,0.21082293]
[1730438452781,0.000822,69626.0,69625.0,0.16508775]
[1730438454237,0.000822,69626.0,69625.0,0.16318984]
[1730438454438,0.000822,69626.0,69625.0,0.16508775]
[1730438454885,0.000822,69626.0,69625.0,0.16318984]
[1730438455296,0.000822,69626.0,69625.0,0.16508775]
[1730438459369,0.000822,69626.0,69625.0,0.16318984]
[1730438460398,0.000822,69626.0,69625.0,0.16508775]
[1730438461633,0.000822,69626.0,69625.0,0.26594776]
[1730438461892,0.000822,69626.0,69625.0,0.40727512]
[1730438462065,0.000822,69626.0,69625.0,0.40440301]
[1730438463550,0.000822,69626.0,69625.0,0.30664509]
[1730438464230,0.000822,69626.0,69625.0,0.303543]
[1730438464437,0.000822,69626.0,69625.0,0.30664509]
[1730438465051,0.000822,69626.0,69625.0,0.30164509]
[1730438465280,0.000822,69626.0,69625.0,0.30664509]
[1730438467154,0.000822,69626.0,69625.0,0.30164509]
[1730438467433,0.000822,69626.0,69625.0,0.30664509]
[1730438471177,0.000822,69626.0,69625.0,0.308543]
[1730438471815,0.000822,69626.0,69625.0,0.403243]
[1730438472654,0.000822,69626.0,69625.0,0.49910301]
[1730438473073,0.000822,69626.0,69625.0,0.67346302]
[1730438473279,0.000822,69626.0,69625.0,0.73776529]
[1730438473565,0.000822,69626.0,69625.0,0.91761609]
[1730438474631,0.000822,69626.0,69625.0,0.82175608]
[1730438475722,0.000822,69626.0,69625.0,0.73601972]
[1730438476792,0.000822,69626.0,69625.0,0.83187973]
[1730438477004,0.000822,69626.0,69625.0,0.83180059]
[1730438477431,0.000822,69626.0,69625.0,0.85480059]
[1730438479434,0.000822,69626.0,69625.0,0.91912797]
[1730438480271,0.000822,69626.0,69625.0,0.82326796]
[1730438480483,0.000822,69626.0,69625.0,0.91912797]
[1730438480726,0.000822,69626.0,69625.0,0.95480059]
[1730438480951,0.000822,69626.0,69625.0,0.96617449]
[1730438481662,0.000822,69626.0,69625.0,0.96606238]
[1730438481872,0.000814,69639.0,69625.0,0.96606238]
[1730438481873,0.00070943,69639.0,69638.0,0.15549691]
[1730438482095,0.00070943,69639.0,69638.0,0.29395216]
[1730438482286,0.01415606,69639.0,69638.0,0.30839816]
[1730438484220,0.00070943,69639.0,69638.0,0.30839816]
[1730438486400,0.01415136,69639.0,69638.0,0.30839816]
[1730438488320,0.00070943,69639.0,69638.0,0.30839816]
[1730438488511,0.01415244,69639.0,69638.0,0.30839816]
[1730438489310,0.00070943,69639.0,69638.0,0.30839816]
[1730438489516,0.01415354,69639.0,69638.0,0.30839816]
[1730438489725,0.01415354,69639.0,69638.0,0.16494291]
[1730438491115,0.01415354,69639.0,69638.0,0.16994291]
[1730438491542,0.01415483,69639.0,69638.0,0.16994291]
[1730438492600,0.01415695,69639.0,69638.0,0.16994291]
[1730438495548,0.01415695,69639.0,69638.0,0.01634391]
[1730438495755,0.18635695,69639.0,69638.0,0.01634391]
[1730438496609,0.18635695,69639.0,69638.0,0.00189791]
[1730438496804,0.18635695,69639.0,69638.0,0.01636927]
[1730438497015,0.18635695,69639.0,69638.0,0.00189791]
[1730438497228,0.18635695,69639.0,69638.0,0.01636927]
[1730438497418,0.18635695,69639.0,69638.0,0.00189791]
[1730438497690,0.18635695,69639.0,69638.0,0.01636927]
[1730438497876,0.17290943,69639.0,69638.0,0.00189791]
[1730438498078,0.17290943,69639.0,69638.0,0.01636927]
[1730438498292,0.17290943,69639.0,69638.0,0.00189791]
[1730438498481,0.17290943,69639.0,69638.0,0.01636927]
[1730438498696,0.17290943,69639.0,69638.0,0.00189791]
[1730438498914,0.17290943,69639.0,69638.0,0.01636927]
[1730438499132,0.17290943,69639.0,69634.0,0.143606]
[1730438499331,0.18636424,69639.0,69638.0,0.01636927]
[1730438499491,0.18636424,69639.0,69638.0,0.00189791]
[1730438499695,0.18636424,69639.0,69638.0,0.01636927]
[1730438499951,0.18636424,69639.0,69638.0,0.00189791]
[1730438500133,0.18636424,69639.0,69638.0,0.01636927]
[1730438500335,0.18636424,69639.0,69638.0,0.00189791]
[1730438500545,0.18636424,69639.0,69638.0,0.01636927]
[1730438500760,0.17290943,69639.0,69638.0,0.00189791]
[1730438501417,0.17290943,69639.0,69638.0,0.01636927]
[1730438501606,0.17290943,69639.0,69638.0,0.00189791]
[1730438501813,0.17290943,69639.0,69638.0,0.01636927]
[1730438501949,0.17290943,69639.0,69638.0,0.00189791]
[1730438502134,0.17290943,69639.0,69638.0,0.01636927]
[1730438502537,0.42973878,69639.0,69638.0,0.01447136]
[1730438502754,0.42973878,69639.0,69636.0,0.00354191]
[1730438502755,0.28614178,69639.0,69636.0,0.00354191]
[1730438502961,0.143601,69637.0,69636.0,0.00354191]
[1730438503166,0.24409558,69637.0,69636.0,0.00354191]
[1730438504027,0.25756033,69637.0,69636.0,0.00354191]
[1730438504869,0.25756033,69637.0,69636.0,0.001644]
[1730438504870,0.15706575,69637.0,69636.0,0.001644]
[1730438505052,0.143601,69637.0,69636.0,0.001644]
[1730438505561,0.143601,69637.0,69636.0,0.00354191]
[1730438505998,0.143601,69637.0,69636.0,0.001644]
[1730438506208,0.143601,69637.0,69636.0,0.00354191]
[1730438511305,0.17358049,69637.0,69636.0,0.00354191]
[1730438513005,0.143601,69637.0,69636.0,0.00354191]
[1730438513589,0.143601,69637.0,69636.0,0.01808597]
[1730438513791,0.143601,69637.0,69636.0,0.00354191]
[1730438514010,0.143601,69637.0,69636.0,0.01808597]
[1730438514214,0.143601,69637.0,69636.0,0.001644]
[1730438514439,0.143601,69637.0,69636.0,0.01808597]
[1730438515217,0.17290943,69639.0,69638.0,0.00189791]
[1730438515218,0.00070943,69639.0,69638.0,0.00189791]
[1730438515838,0.00070943,69639.0,69638.0,0.16004097]
[1730438516200,0.00070943,69639.0,69638.0,0.25104097]
[1730438516406,0.00070943,69639.0,69638.0,0.32754097]
[1730438526808,0.00070943,69639.0,69638.0,0.33254097]
[1730438527588,0.00070943,69639.0,69638.0,0.32754097]
[1730438527796,0.00070943,69639.0,69638.0,0.33254097]
[1730438535327,0.00070943,69639.0,69638.0,0.32754097]
[1730438535566,0.00070943,69639.0,69638.0,0.33254097]
[1730438536430,0.00070943,69639.0,69638.0,0.33418497]
[1730438536675,0.00070943,69639.0,69638.0,0.69533598]
[1730438536923,0.00070943,69639.0,69638.0,0.47964022]
[1730438538338,0.00070943,69639.0,69638.0,0.57550023]
[1730438538543,0.00070943,69639.0,69638.0,0.47964022]
[1730438540682,0.00070943,69639.0,69638.0,0.47864022]
[1730438540891,0.00070943,69639.0,69638.0,0.47764022]
[1730438542421,0.00070943,69639.0,69638.0,0.69533598]
[1730438542575,0.00070943,69639.0,69638.0,0.47764022]
[1730438543831,0.00070943,69639.0,69638.0,0.60064022]
[1730438546787,0.00070943,69639.0,69638.0,0.59874231]
[1730438546998,0.00070943,69639.0,69638.0,0.60064022]
[1730438547226,0.00070943,69639.0,69638.0,0.31014022]
[1730438547429,0.00070943,69639.0,69638.0,0.16668497]
[1730438548149,0.00070943,69639.0,69638.0,0.01618806]
[1730438548376,0.16218477,69639.0,69638.0,0.01618806]
[1730438548591,0.16218477,69639.0,69638.0,0.001644]
[1730438549100,0.52192935,69639.0,69638.0,0.001644]
[1730438549304,0.47894002,69639.0,69638.0,0.001644]
[1730438549511,0.54340634,69639.0,69638.0,0.001644]
[1730438549717,0.55685019,69639.0,69638.0,0.001644]
[1730438549971,0.57029404,69639.0,69638.0,0.001644]
[1730438550625,0.74105311,69639.0,69638.0,0.001644]
[1730438550837,0.73855417,69639.0,69638.0,0.001644]
[1730438551057,0.248601,69637.0,69636.0,0.00140785]
[1730438551271,0.49513777,69637.0,69636.0,0.00140785]
[1730438551729,0.49013777,69637.0,69636.0,0.00140785]
[1730438552154,0.53310305,69637.0,69636.0,0.00140785]
[1730438552587,0.5196592,69637.0,69636.0,0.00140785]
[1730438552819,0.54017205,69637.0,69636.0,0.00140785]
[1730438553275,0.56165632,69637.0,69636.0,0.00140785]
[1730438553531,0.5616342,69637.0,69636.0,0.00140785]
[1730438554252,0.5666342,69637.0,69636.0,0.00140785]
[1730438554470,0.5665342,69637.0,69636.0,0.00140785]
[1730438554965,0.56652093,69637.0,69636.0,0.00140785]
[1730438555661,0.50210677,69637.0,69636.0,0.00140785]
[1730438556581,0.54503451,69637.0,69636.0,0.00140785]
[1730438557545,0.52452166,69637.0,69636.0,0.00140785]
[1730438558002,0.51108399,69637.0,69636.0,0.00140785]
[1730438558231,0.52697834,69637.0,69636.0,0.00140785]
[1730438558660,0.4840506,69637.0,69636.0,0.00140785]
[1730438559377,0.48155572,69637.0,69636.0,0.00140785]
[1730438559597,0.62003302,69637.0,69636.0,0.00140785]
[1730438561894,0.60663355,69637.0,69636.0,0.00140785]
[1730438567018,0.62001928,69637.0,69636.0,0.00140785]
[1730438568391,0.60663355,69637.0,69636.0,0.00140785]
[1730438568610,0.62002227,69637.0,69636.0,0.00140785]
[1730438568877,0.62002301,69637.0,69636.0,0.00140785]
[1730438569088,0.60663355,69637.0,69636.0,0.00140785]
[1730438570722,0.70247535,69637.0,69636.0,0.00140785]
[1730438574532,0.80331715,69637.0,69636.0,0.00140785]
[1730438574791,0.98460871,69637.0,69636.0,0.00140785]
[1730438575007,0.24863,69623.0,69622.0,0.21769576]
[1730438575239,0.48292705,69623.0,69622.0,0.21769576]
[1730438575726,0.143645,69616.0,69615.0,0.21933776]
[1730438575959,0.28210025,69616.0,69615.0,0.21933776]
[1730438576201,0.28210025,69616.0,69615.0,0.01137797]
[1730438576477,0.28210025,69616.0,69615.0,0.001642]
[1730438576690,0.37734926,69616.0,69615.0,0.001642]
[1730438578771,0.28200025,69616.0,69615.0,0.001642]
[1730438579004,0.143644,69617.0,69615.0,0.001642]
[1730438579224,0.143644,69617.0,69615.0,0.01147793]
[1730438581762,0.143645,69616.0,69615.0,0.01147793]
[1730438581981,0.22041629,69616.0,69615.0,0.01147793]
[1730438582193,0.22041629,69616.0,69615.0,0.001642]
[1730438582621,0.22041629,69616.0,69615.0,0.01147793]
[1730438582839,0.22041629,69616.0,69615.0,0.001642]
[1730438583091,0.22041629,69616.0,69615.0,0.01147793]
[1730438583092,0.35887154,69616.0,69615.0,0.01147793]
[1730438583325,0.45887154,69616.0,69615.0,0.001642]
[1730438595532,0.50173151,69616.0,69615.0,0.001642]
[1730438596007,0.45887154,69616.0,69615.0,0.001642]
[1730438597096,0.50188147,69616.0,69615.0,0.001642]
[1730438599465,0.45887154,69616.0,69615.0,0.001642]
[1730438606847,0.45969354,69616.0,69615.0,0.001642]
[1730438609573,0.56688211,69616.0,69615.0,0.001642]
[1730438609797,0.50235456,69616.0,69615.0,0.001642]
[1730438610723,0.59819636,69616.0,69615.0,0.001642]
[1730438610913,0.50235456,69616.0,69615.0,0.001642]
[1730438614574,0.60994792,69616.0,69615.0,0.001642]
[1730438615425,0.50235456,69616.0,69615.0,0.001642]
[1730438619433,0.59819636,69616.0,69615.0,0.001642]
[1730438619736,0.81730598,69616.0,69615.0,0.001642]
[1730438619891,0.78519845,69616.0,69615.0,0.001642]
[1730438620267,0.80010286,69616.0,69615.0,0.001642]
[1730438621756,0.80889085,69616.0,69615.0,0.001642]
[1730438623017,0.80899294,69616.0,69615.0,0.001642]
[1730438623226,0.80889085,69616.0,69615.0,0.001642]
[1730438624493,1.11823398,69616.0,69615.0,0.001642]
[1730438624723,0.97283598,69616.0,69615.0,0.001642]
[1730438624933,0.80889085,69616.0,69615.0,0.001642]
[1730438625126,0.80899294,69616.0,69615.0,0.001642]
[1730438629537,0.62199085,69616.0,69615.0,0.001642]
[1730438629687,0.57857558,69616.0,69615.0,0.001642]
[1730438629898,0.57478759,69616.0,69615.0,0.001642]
[1730438630104,0.44058977,69616.0,69615.0,0.001642]
[1730438630908,0.34058977,69616.0,69615.0,0.101442]
[1730438631125,0.28292225,69616.0,69615.0,0.181242]
[1730438631295,0.39057927,69616.0,69615.0,0.181242]
[1730438631496,0.28292225,69616.0,69615.0,0.181242]
[1730438631704,0.3690461,69616.0,69615.0,0.181242]
[1730438631916,0.23059085,69616.0,69615.0,0.181242]
[1730438632311,0.33059085,69616.0,69615.0,0.181242]
[1730438632744,0.33059085,69616.0,69615.0,0.1901319]
[1730438635489,0.30905331,69616.0,69615.0,0.1901319]
[1730438635645,0.28752443,69616.0,69615.0,0.181242]
[1730438636014,0.28752443,69616.0,69615.0,0.1901319]
[1730438636544,0.28752079,69616.0,69615.0,0.1901319]
[1730438636738,0.04387579,69616.0,69615.0,0.1901319]
[1730438636964,0.04387579,69616.0,69615.0,0.33567681]
[1730438636965,0.000822,69616.0,69615.0,0.33567681]
[1730438637173,0.03469779,69620.0,69616.0,0.1721]
[1730438637459,0.06707208,69624.0,69623.0,0.00189791]
[1730438637661,0.06707208,69624.0,69623.0,0.09229791]
[1730438638205,0.31070008,69624.0,69623.0,0.09229791]
[1730438639303,0.24611939,69624.0,69623.0,0.09229791]
[1730438640072,0.25956082,69624.0,69623.0,0.09229791]
[1730438641958,0.26037913,69624.0,69623.0,0.0904]
[1730438642343,0.24694139,69624.0,69623.0,0.0904]
[1730438642541,0.26037662,69624.0,69623.0,0.0904]
[1730438644154,0.24694139,69624.0,69623.0,0.0904]
[1730438648522,0.24694139,69624.0,69623.0,0.09229791]
[1730438657679,0.34346599,69624.0,69623.0,0.0904]
[1730438665050,0.24694139,69624.0,69623.0,0.0904]
[1730438665375,0.24694139,69624.0,69623.0,0.09229791]
[1730438665735,0.24694139,69624.0,69623.0,0.0904]
[1730438666971,0.24694139,69624.0,69623.0,0.09229791]
[1730438667773,0.24694139,69624.0,69623.0,0.0904]
[1730438669575,0.40150298,69624.0,69623.0,0.0904]
[1730438670494,0.44418081,69624.0,69623.0,0.0904]
[1730438671450,0.40119152,69624.0,69623.0,0.0904]
[1730438672128,0.243634,69621.0,69620.0,0.001644]
[1730438672359,0.72361137,69621.0,69620.0,0.001644]
[1730438672593,0.65908618,69621.0,69620.0,0.001644]
[1730438673518,0.74514421,69621.0,69620.0,0.001644]
[1730438673759,0.74516969,69621.0,69620.0,0.001644]
[1730438673987,0.76669056,69621.0,69620.0,0.001644]